[Event "11th LCC Rapid 2019"]
[Site "London"]
[Date "2019.12.07"]
[Round "1.19"]
[White "Willmoth, Robert F"]
[Black "Onslow, Teddy"]
[Result "1/2-1/2"]
[WhiteElo "2111"]
[BlackElo "1746"]
[PlyCount "89"]
[EventDate "2019.12.08"]
[EventType "swiss"]
[EventCountry "ENG"]
[TimeControl "15+10"]
[WhiteClock "0:00:36"]
[BlackClock "0:02:21"]

1. d4 {[%emt 0:00:00]} d5 {[%emt 0:00:00]} 2. c4 {[%emt 0:00:00]} e6 {[%emt 0:00:00]} 3. g3 {[%emt 0:00:00]} Nf6 {[%emt 0:00:00]} 4. Bg2 {[%emt 0:00:00]} c6 {[%emt 0:00:00]} 5. Nd2 {[%emt 0:00:00]} Nbd7 {[%emt 0:00:00]} 6. Ngf3 {[%emt 0:00:00]} Bd6 {[%emt 0:00:00]} 7. Qc2 {[%emt 0:00:00]} O-O {[%emt 0:00:00]} 8. O-O {[%emt 0:00:00]} e5 {[%emt 0:00:00]} 9. cxd5 {[%emt 0:00:00]} Nxd5 {[%emt 0:00:00]} 10. Nc4 {[%emt 0:00:00]} Qe7 {[%emt 0:00:00]} 11. Nxd6 {[%emt 0:00:00]} Qxd6 {[%emt 0:00:00]} 12. dxe5 {[%emt 0:00:00]} Nxe5 {[%emt 0:00:00]} 13. Ng5 {[%emt 0:00:00]} Qg6 {[%emt 0:00:00]} 14. e4 {[%emt 0:00:00]} h6 {[%emt 0:00:00]} 15. Nf3 {[%emt 0:00:00]} Nxf3+ {[%emt 0:00:00]} 16. Bxf3 {[%emt 0:00:00]} Bh3 {[%emt 0:00:00]} 17. Re1 {[%emt 0:00:00]} Rfe8 {[%emt 0:00:00]} 18. Bd2 {[%emt 0:00:00]} Rad8 {[%emt 0:00:00]} 19. a4 {[%emt 0:00:00]} Nf6 {[%emt 0:00:00]} 20. Bc3 {[%emt 0:00:00]} Ng4 {[%emt 0:00:00]} 21. Rad1 {[%emt 0:00:00]} Qg5 {[%emt 0:00:01]} 22. b4 {[%emt 0:00:00]} Ne5 {[%emt 0:00:18]} 23. Bh1 {[%emt 0:00:00]} Bg4 {[%emt 0:00:18]} 24. f4 {[%emt 0:00:00]} Bxd1 {[%emt 0:00:04]} 25. Rxd1 {[%emt 0:00:00]} Rxd1+ {[%emt 0:00:12]} 26. Qxd1 {[%emt 0:00:00]} Qg4 {[%emt 0:00:50]} 27. Qd4 {[%emt 0:00:00]} c5 {[%emt 0:00:22]} 28. bxc5 {[%emt 0:00:17]} Nc6 {[%emt 0:00:02]} 29. Qe3 {[%emt 0:00:47]} Qd1+ {[%emt 0:00:24]} 30. Qe1 {[%emt 0:00:27]} Qxa4 {[%emt 0:00:44]} 31. e5 {[%emt 0:00:01]} Qc4 {[%emt 0:00:26]} 32. Be4 {[%emt 0:00:02]} Qxc5+ {[%emt 0:00:07]} 33. Kg2 {[%emt 0:00:00]} a5 {[%emt 0:00:16]} 34. Ba1 {[%emt 0:00:27]} a4 {[%emt 0:00:12]} 35. Qe2 {[%emt 0:00:01]} Rd8 {[%emt 0:00:29]} 36. f5 {[%emt 0:01:23]} Qc1 {[%emt 0:00:29]} 37. Qg4 {[%emt 0:00:45]} Qg5 {[%emt 0:00:32]} 38. Qf3 {[%emt 0:00:19]} Rd2+ {[%emt 0:00:08]} 39. Kh3 {[%emt 0:00:01]} a3 {[%emt 0:00:18]} 40. e6 {[%emt 0:00:02]} Nd4 {[%emt 0:00:28]} 41. exf7+ {[%emt 0:00:11]} Kxf7 {[%emt 0:00:05]} 42. Bd5+ {[%emt 0:00:01]} Kf8 {[%emt 0:00:03]} 43. Qxa3+ {[%emt 0:00:19]} Qe7 {[%emt 0:00:09]} 44. Qa8+ {[%emt 0:00:13]} Qe8 {[%emt 0:00:02]} 45. Qa3+ {[%emt 0:00:08]} 1/2-1/2

[Event "11th LCC Rapid 2019"]
[Site "London"]
[Date "2019.12.07"]
[Round "1.20"]
[White "Dupuis, Denis K"]
[Black "Stewart, Ashley"]
[Result "1/2-1/2"]
[WhiteElo "1599"]
[BlackElo "2172"]
[PlyCount "82"]
[EventDate "2019.12.08"]
[EventType "swiss"]
[EventCountry "ENG"]
[TimeControl "15+10"]
[WhiteClock "0:00:54"]
[BlackClock "0:06:16"]

1. e4 {[%emt 0:00:00]} e5 {[%emt 0:00:00]} 2. Nf3 {[%emt 0:00:00]} Nc6 {[%emt 0:00:00]} 3. Bc4 {[%emt 0:00:00]} Bc5 {[%emt 0:00:00]} 4. c3 {[%emt 0:00:00]} Nf6 {[%emt 0:00:00]} 5. d4 {[%emt 0:00:00]} exd4 {[%emt 0:00:00]} 6. cxd4 {[%emt 0:00:00]} Bb4+ {[%emt 0:00:03]} 7. Bd2 {[%emt 0:00:00]} Bxd2+ {[%emt 0:00:00]} 8. Nbxd2 {[%emt 0:00:00]} d5 {[%emt 0:00:00]} 9. exd5 {[%emt 0:00:00]} Nxd5 {[%emt 0:00:00]} 10. Qb3 {[%emt 0:00:00]} Nce7 {[%emt 0:00:00]} 11. O-O {[%emt 0:00:00]} O-O {[%emt 0:00:00]} 12. Rfe1 {[%emt 0:00:00]} c6 {[%emt 0:00:00]} 13. Ne4 {[%emt 0:00:00]} Qb6 {[%emt 0:00:00]} 14. Nc5 {[%emt 0:00:00]} h6 {[%emt 0:00:00]} 15. Ne5 {[%emt 0:00:00]} Qxb3 {[%emt 0:00:00]} 16. Bxb3 {[%emt 0:00:00]} b6 {[%emt 0:00:00]} 17. Nxc6 {[%emt 0:00:00]} bxc5 {[%emt 0:00:00]} 18. Nxe7+ {[%emt 0:00:00]} Nxe7 {[%emt 0:00:00]} 19. Rxe7 {[%emt 0:00:00]} cxd4 {[%emt 0:00:00]} 20. Rd1 {[%emt 0:00:00]} Be6 {[%emt 0:00:00]} 21. Bxe6 {[%emt 0:00:00]} fxe6 {[%emt 0:00:00]} 22. Rxe6 {[%emt 0:00:00]} Rac8 {[%emt 0:00:00]} 23. Kf1 {[%emt 0:00:00]} Rc4 {[%emt 0:00:03]} 24. Rd2 {[%emt 0:00:00]} Rb8 {[%emt 0:01:28]} 25. b3 {[%emt 0:01:18]} Rc1+ {[%emt 0:00:35]} 26. Re1 {[%emt 0:00:00]} Rxe1+ {[%emt 0:00:23]} 27. Kxe1 {[%emt 0:00:00]} Rb4 {[%emt 0:00:02]} 28. Ke2 {[%emt 0:00:00]} a5 {[%emt 0:00:03]} 29. Rd3 {[%emt 0:00:00]} Kf7 {[%emt 0:00:53]} 30. Kf3 {[%emt 0:00:00]} a4 {[%emt 0:00:20]} 31. Ke4 {[%emt 0:00:00]} axb3 {[%emt 0:00:33]} 32. axb3 {[%emt 0:00:00]} Ke6 {[%emt 0:00:15]} 33. f4 {[%emt 0:00:00]} g6 {[%emt 0:00:11]} 34. g4 {[%emt 0:00:00]} g5 {[%emt 0:00:45]} 35. f5+ {[%emt 0:00:00]} Kf6 {[%emt 0:00:01]} 36. Kd5 {[%emt 0:00:00]} h5 {[%emt 0:00:14]} 37. h3 {[%emt 0:00:00]} hxg4 {[%emt 0:00:01]} 38. hxg4 {[%emt 0:00:00]} Rb8 {[%emt 0:00:08]} 39. Kxd4 {[%emt 0:00:00]} Rb4+ {[%emt 0:00:01]} 40. Ke3 {[%emt 0:00:00]} Rxg4 {[%emt 0:00:02]} 41. Kf3 {[%emt 0:00:00]} Rb4 {[%emt 0:00:10]} 1/2-1/2

[Event "11th LCC Rapid 2019"]
[Site "London"]
[Date "2019.12.07"]
[Round "1.21"]
[White "Mitra, Roman C"]
[Black "Phillips, David A"]
[Result "1-0"]
[WhiteElo "2132"]
[BlackElo "2055"]
[PlyCount "101"]
[EventDate "2019.12.08"]
[EventType "swiss"]
[EventCountry "ENG"]
[TimeControl "15+10"]
[WhiteClock "0:00:21"]
[BlackClock "0:09:10"]

1. c4 {[%emt 0:00:00]} e6 {[%emt 0:00:00]} 2. g3 {[%emt 0:00:00]} f5 {[%emt 0:00:00]} 3. Bg2 {[%emt 0:00:00]} Nf6 {[%emt 0:00:00]} 4. Nf3 {[%emt 0:00:00]} Be7 {[%emt 0:00:00]} 5. O-O {[%emt 0:00:00]} O-O {[%emt 0:00:00]} 6. d3 {[%emt 0:00:00]} d6 {[%emt 0:00:00]} 7. Nc3 {[%emt 0:00:00]} e5 {[%emt 0:00:00]} 8. Rb1 {[%emt 0:00:00]} a5 {[%emt 0:00:00]} 9. a3 {[%emt 0:00:00]} Qe8 {[%emt 0:00:00]} 10. b4 {[%emt 0:00:00]} axb4 {[%emt 0:00:00]} 11. axb4 {[%emt 0:00:00]} Nc6 {[%emt 0:00:00]} 12. b5 {[%emt 0:00:00]} Nd8 {[%emt 0:00:00]} 13. Qb3 {[%emt 0:00:00]} Kh8 {[%emt 0:00:00]} 14. Bg5 {[%emt 0:00:00]} Be6 {[%emt 0:00:00]} 15. Nd2 {[%emt 0:00:00]} Nd7 {[%emt 0:00:00]} 16. Bxe7 {[%emt 0:00:00]} Qxe7 {[%emt 0:00:00]} 17. Ra1 {[%emt 0:00:00]} Rxa1 {[%emt 0:00:00]} 18. Rxa1 {[%emt 0:00:00]} Nc5 {[%emt 0:00:00]} 19. Qc2 {[%emt 0:00:00]} Qf6 {[%emt 0:01:16]} 20. e3 {[%emt 0:00:00]} f4 {[%emt 0:00:20]} 21. Nce4 {[%emt 0:00:00]} Nxe4 {[%emt 0:00:10]} 22. Nxe4 {[%emt 0:00:00]} Qh6 {[%emt 0:00:15]} 23. exf4 {[%emt 0:00:00]} exf4 {[%emt 0:00:04]} 24. Ra8 {[%emt 0:00:00]} fxg3 {[%emt 0:01:20]} 25. hxg3 {[%emt 0:00:00]} Bh3 {[%emt 0:00:42]} 26. Bh1 {[%emt 0:00:00]} Ne6 {[%emt 0:00:13]} 27. Rxf8+ {[%emt 0:00:00]} Nxf8 {[%emt 0:00:00]} 28. b6 {[%emt 0:00:00]} cxb6 {[%emt 0:00:11]} 29. Nc3 {[%emt 0:00:00]} Ne6 {[%emt 0:00:14]} 30. Ne2 {[%emt 0:00:00]} Qf6 {[%emt 0:00:14]} 31. Qa2 {[%emt 0:00:00]} h6 {[%emt 0:00:07]} 32. Bxb7 {[%emt 0:00:00]} Nd4 {[%emt 0:00:17]} 33. Qa8+ {[%emt 0:00:00]} Kh7 {[%emt 0:00:02]} 34. Nf4 {[%emt 0:00:00]} Bf5 {[%emt 0:00:12]} 35. Bd5 {[%emt 0:00:00]} Ne6 {[%emt 0:00:09]} 36. Qe8 {[%emt 0:00:00]} Qf8 {[%emt 0:00:15]} 37. Qxf8 {[%emt 0:00:00]} Nxf8 {[%emt 0:00:01]} 38. d4 {[%emt 0:00:00]} g5 {[%emt 0:00:11]} 39. Ng2 {[%emt 0:00:00]} Ne6 {[%emt 0:00:18]} 40. Bxe6 {[%emt 0:00:00]} Bxe6 {[%emt 0:00:01]} 41. Ne3 {[%emt 0:00:00]} Kg7 {[%emt 0:00:15]} 42. g4 {[%emt 0:00:00]} Kf6 {[%emt 0:00:05]} 43. Kg2 {[%emt 0:00:00]} Kg6 {[%emt 0:00:12]} 44. Kf3 {[%emt 0:00:00]} h5 {[%emt 0:00:14]} 45. gxh5+ {[%emt 0:00:00]} Kxh5 {[%emt 0:00:01]} 46. Ke4 {[%emt 0:00:00]} Bd7 {[%emt 0:00:19]} 47. Kd5 {[%emt 0:00:00]} b5 {[%emt 0:00:14]} 48. Kxd6 {[%emt 0:00:00]} Be8 {[%emt 0:00:08]} 49. Ke7 {[%emt 0:00:00]} Bc6 {[%emt 0:00:10]} 50. d5 {[%emt 0:00:00]} Bb7 {[%emt 0:00:04]} 51. cxb5 {[%emt 0:00:00]} 1-0

[Event "11th LCC Rapid 2019"]
[Site "London"]
[Date "2019.12.07"]
[Round "1.23"]
[White "O'Gorman, Tom"]
[Black "Trivedi, Aarnavh"]
[Result "1-0"]
[WhiteElo "2001"]
[BlackElo "1761"]
[PlyCount "59"]
[EventDate "2019.12.08"]
[EventType "swiss"]
[EventCountry "ENG"]
[TimeControl "15+10"]
[WhiteClock "0:05:54"]
[BlackClock "0:07:15"]

1. d4 {[%emt 0:00:00]} d5 {[%emt 0:00:00]} 2. c4 {[%emt 0:00:00]} c6 {[%emt 0:00:00]} 3. Nc3 {[%emt 0:00:00]} e5 {[%emt 0:00:00]} 4. cxd5 {[%emt 0:00:00]} cxd5 {[%emt 0:00:00]} 5. e3 {[%emt 0:00:00]} exd4 {[%emt 0:00:00]} 6. Qxd4 {[%emt 0:00:00]} Nf6 {[%emt 0:00:00]} 7. Nf3 {[%emt 0:00:00]} Nc6 {[%emt 0:00:00]} 8. Bb5 {[%emt 0:00:00]} Be7 {[%emt 0:00:00]} 9. O-O {[%emt 0:00:00]} O-O {[%emt 0:00:00]} 10. Qd1 {[%emt 0:00:00]} Bg4 {[%emt 0:00:00]} 11. h3 {[%emt 0:00:00]} Bh5 {[%emt 0:00:00]} 12. b3 {[%emt 0:00:00]} Rc8 {[%emt 0:00:00]} 13. Bb2 {[%emt 0:00:00]} Bxf3 {[%emt 0:00:00]} 14. Qxf3 {[%emt 0:00:00]} Ne5 {[%emt 0:00:00]} 15. Qd1 {[%emt 0:00:00]} a6 {[%emt 0:00:00]} 16. Be2 {[%emt 0:00:00]} Ng6 {[%emt 0:00:00]} 17. Rc1 {[%emt 0:00:00]} b5 {[%emt 0:00:00]} 18. Bf3 {[%emt 0:00:00]} Qa5 {[%emt 0:00:00]} 19. a3 {[%emt 0:00:00]} Bxa3 {[%emt 0:00:00]} 20. Ra1 {[%emt 0:00:00]} b4 {[%emt 0:00:00]} 21. Nb1 {[%emt 0:00:00]} Qb6 {[%emt 0:00:00]} 22. Nxa3 {[%emt 0:00:00]} bxa3 {[%emt 0:00:00]} 23. Rxa3 {[%emt 0:00:00]} Rfd8 {[%emt 0:00:00]} 24. Qd4 {[%emt 0:00:00]} Qd6 {[%emt 0:00:00]} 25. Rfa1 {[%emt 0:00:00]} Rc6 {[%emt 0:00:00]} 26. Ra5 {[%emt 0:00:00]} Ne7 {[%emt 0:00:00]} 27. Qd3 {[%emt 0:00:00]} Nd7 {[%emt 0:00:00]} 28. Rxa6 {[%emt 0:00:00]} Nc5 {[%emt 0:00:00]} 29. Rxc6 {[%emt 0:00:00]} Nxd3 {[%emt 0:00:00]} 30. Rxd6 {[%emt 0:00:00]} 1-0

[Event "11th LCC Rapid 2019"]
[Site "London"]
[Date "2019.12.07"]
[Round "1.24"]
[White "Zheng, William"]
[Black "Rahman, Asad"]
[Result "0-1"]
[WhiteElo "1672"]
[BlackElo "2200"]
[PlyCount "75"]
[EventDate "2019.12.08"]
[EventType "swiss"]
[EventCountry "ENG"]
[TimeControl "15+10"]
[WhiteClock "0:13:43"]
[BlackClock "0:12:09"]

1. e4 {[%emt 0:00:00]} c6 {[%emt 0:00:00]} 2. d4 {[%emt 0:00:00]} d5 {[%emt 0:00:00]} 3. exd5 {[%emt 0:00:00]} cxd5 {[%emt 0:00:00]} 4. Nc3 {[%emt 0:00:00]} Nc6 {[%emt 0:00:00]} 5. Nf3 {[%emt 0:00:00]} Nf6 {[%emt 0:00:00]} 6. h3 {[%emt 0:00:00]} Bf5 {[%emt 0:00:00]} 7. Bf4 {[%emt 0:00:00]} a6 {[%emt 0:00:00]} 8. Bd3 {[%emt 0:00:00]} Ne4 {[%emt 0:00:00]} 9. O-O {[%emt 0:00:00]} e6 {[%emt 0:00:00]} 10. Bxe4 {[%emt 0:00:00]} dxe4 {[%emt 0:00:00]} 11. Ng5 {[%emt 0:00:00]} Qxd4 {[%emt 0:00:00]} 12. a3 {[%emt 0:00:00]} h6 {[%emt 0:00:00]} 13. Qxd4 {[%emt 0:00:00]} Nxd4 {[%emt 0:00:00]} 14. Be5 {[%emt 0:00:00]} Nc6 {[%emt 0:00:00]} 15. Nxf7 {[%emt 0:00:00]} Kxf7 {[%emt 0:00:00]} 16. Bf4 {[%emt 0:00:00]} Bc5 {[%emt 0:00:00]} 17. Rad1 {[%emt 0:00:00]} Rhd8 {[%emt 0:00:00]} 18. g4 {[%emt 0:00:00]} Bh7 {[%emt 0:00:00]} 19. b4 {[%emt 0:00:00]} Bd4 {[%emt 0:00:00]} 20. Na4 {[%emt 0:00:00]} e5 {[%emt 0:00:00]} 21. Be3 {[%emt 0:00:00]} b5 {[%emt 0:00:00]} 22. Nb6 {[%emt 0:00:00]} Rab8 {[%emt 0:00:00]} 23. c3 {[%emt 0:00:00]} Bxb6 {[%emt 0:00:00]} 24. Bxb6 {[%emt 0:00:00]} Rxb6 {[%emt 0:00:00]} 25. Rxd8 {[%emt 0:00:00]} Nxd8 {[%emt 0:00:00]} 26. Rd1 {[%emt 0:00:00]} Ke7 {[%emt 0:00:00]} 27. Rd5 {[%emt 0:00:00]} Rd6 {[%emt 0:00:00]} 28. Rxe5+ {[%emt 0:00:00]} Ne6 {[%emt 0:00:00]} 29. a4 {[%emt 0:00:00]} Kf6 {[%emt 0:00:00]} 30. f4 {[%emt 0:00:00]} exf3 {[%emt 0:00:00]} 31. Re3 {[%emt 0:00:00]} bxa4 {[%emt 0:00:00]} 32. Rxf3+ {[%emt 0:00:00]} Ke5 {[%emt 0:00:00]} 33. Re3+ {[%emt 0:00:00]} Be4 {[%emt 0:00:00]} 34. c4 {[%emt 0:00:00]} Rd3 {[%emt 0:00:00]} 35. Re1 {[%emt 0:00:00]} a3 {[%emt 0:00:00]} 36. c5 {[%emt 0:00:00]} a2 {[%emt 0:00:00]} 37. Ra1 {[%emt 0:00:00]} Rd2 {[%emt 0:00:00]} 38. Kf1 {[%emt 0:00:00]} 0-1

[Event "11th LCC Rapid 2019"]
[Site "London"]
[Date "2019.12.07"]
[Round "1.25"]
[White "Myall, Ivan J"]
[Black "Kirupakaran, Vishnu"]
[Result "1-0"]
[WhiteElo "1994"]
[BlackElo "1871"]
[PlyCount "119"]
[EventDate "2019.12.08"]
[EventType "swiss"]
[EventCountry "ENG"]
[TimeControl "15+10"]
[WhiteClock "0:00:48"]
[BlackClock "0:02:56"]

1. e4 {[%emt 0:00:00]} c5 {[%emt 0:00:00]} 2. c3 {[%emt 0:00:00]} Nf6 {[%emt 0:00:00]} 3. e5 {[%emt 0:00:00]} Nd5 {[%emt 0:00:00]} 4. d4 {[%emt 0:00:00]} cxd4 {[%emt 0:00:00]} 5. Nf3 {[%emt 0:00:00]} Nc6 {[%emt 0:00:00]} 6. cxd4 {[%emt 0:00:00]} d6 {[%emt 0:00:00]} 7. Bc4 {[%emt 0:00:00]} e6 {[%emt 0:00:00]} 8. O-O {[%emt 0:00:00]} Be7 {[%emt 0:00:00]} 9. a3 {[%emt 0:00:00]} O-O {[%emt 0:00:00]} 10. Qe2 {[%emt 0:00:00]} a6 {[%emt 0:00:00]} 11. b4 {[%emt 0:00:00]} Qc7 {[%emt 0:00:00]} 12. Bd3 {[%emt 0:00:00]} b6 {[%emt 0:00:00]} 13. Bd2 {[%emt 0:00:00]} Bb7 {[%emt 0:00:00]} 14. Qe4 {[%emt 0:00:00]} g6 {[%emt 0:00:00]} 15. Bh6 {[%emt 0:00:00]} Rfd8 {[%emt 0:00:00]} 16. Rc1 {[%emt 0:00:00]} Qd7 {[%emt 0:00:03]} 17. Bc4 {[%emt 0:00:00]} dxe5 {[%emt 0:01:17]} 18. dxe5 {[%emt 0:00:00]} Qe8 {[%emt 0:01:39]} 19. Nc3 {[%emt 0:00:00]} Nxc3 {[%emt 0:00:07]} 20. Rxc3 {[%emt 0:00:00]} Rab8 {[%emt 0:00:16]} 21. Qg4 {[%emt 0:00:00]} Rbc8 {[%emt 0:00:09]} 22. Rcc1 {[%emt 0:00:00]} b5 {[%emt 0:00:11]} 23. Bb3 {[%emt 0:00:00]} Rd3 {[%emt 0:00:07]} 24. Bc2 {[%emt 0:00:00]} Rd7 {[%emt 0:00:04]} 25. Be4 {[%emt 0:00:28]} Rdc7 {[%emt 0:00:19]} 26. Rd1 {[%emt 0:00:34]} Rd8 {[%emt 0:00:09]} 27. Rxd8 {[%emt 0:00:39]} Qxd8 {[%emt 0:00:01]} 28. h4 {[%emt 0:00:31]} Rd7 {[%emt 0:00:08]} 29. Be3 {[%emt 0:00:39]} Rd1+ {[%emt 0:00:13]} 30. Rxd1 {[%emt 0:00:02]} Qxd1+ {[%emt 0:00:00]} 31. Kh2 {[%emt 0:00:01]} Nd8 {[%emt 0:00:29]} 32. Bxb7 {[%emt 0:00:09]} Nxb7 {[%emt 0:00:01]} 33. Qe4 {[%emt 0:00:09]} Qd7 {[%emt 0:00:11]} 34. Bg5 {[%emt 0:00:16]} Bf8 {[%emt 0:00:17]} 35. h5 {[%emt 0:00:25]} a5 {[%emt 0:00:02]} 36. hxg6 {[%emt 0:00:12]} hxg6 {[%emt 0:00:02]} 37. Bf6 {[%emt 0:00:13]} axb4 {[%emt 0:00:14]} 38. axb4 {[%emt 0:00:05]} Bg7 {[%emt 0:00:09]} 39. Qh4 {[%emt 0:00:12]} Qd1 {[%emt 0:00:16]} 40. Bxg7 {[%emt 0:00:26]} Kxg7 {[%emt 0:00:02]} 41. Qf6+ {[%emt 0:00:04]} Kg8 {[%emt 0:00:14]} 42. Qe7 {[%emt 0:00:16]} Qd5 {[%emt 0:00:16]} 43. Qf6 {[%emt 0:00:22]} Qd1 {[%emt 0:00:05]} 44. Qf4 {[%emt 0:00:12]} Nd8 {[%emt 0:00:13]} 45. Qd4 {[%emt 0:00:05]} Qxd4 {[%emt 0:00:19]} 46. Nxd4 {[%emt 0:00:02]} Kf8 {[%emt 0:00:05]} 47. f4 {[%emt 0:00:04]} Ke7 {[%emt 0:00:03]} 48. Kg3 {[%emt 0:00:11]} f6 {[%emt 0:00:23]} 49. Kf3 {[%emt 0:00:07]} fxe5 {[%emt 0:00:03]} 50. fxe5 {[%emt 0:00:01]} Nf7 {[%emt 0:00:05]} 51. Kf4 {[%emt 0:00:11]} Nd8 {[%emt 0:00:12]} 52. Ke4 {[%emt 0:00:10]} Nf7 {[%emt 0:00:08]} 53. Nxb5 {[%emt 0:00:04]} Kd7 {[%emt 0:00:09]} 54. Nd4 {[%emt 0:00:05]} Ke7 {[%emt 0:00:21]} 55. b5 {[%emt 0:00:02]} Nd8 {[%emt 0:00:02]} 56. Nc6+ {[%emt 0:00:19]} Nxc6 {[%emt 0:00:11]} 57. bxc6 {[%emt 0:00:00]} Kd8 {[%emt 0:00:01]} 58. Kf4 {[%emt 0:00:01]} Kc7 {[%emt 0:00:00]} 59. Kg5 {[%emt 0:00:01]} Kxc6 {[%emt 0:00:01]} 60. Kxg6 {[%emt 0:00:01]} 1-0

[Event "11th LCC Rapid 2019"]
[Site "London"]
[Date "2019.12.07"]
[Round "1.26"]
[White "Sandhu, Manvith"]
[Black "Orgler, Philipp"]
[Result "1/2-1/2"]
[WhiteElo "1673"]
[BlackElo "2056"]
[PlyCount "122"]
[EventDate "2019.12.08"]
[EventType "swiss"]
[EventCountry "ENG"]
[TimeControl "15+10"]
[WhiteClock "0:01:41"]
[BlackClock "0:00:25"]

1. e4 {[%emt 0:00:00]} b6 {[%emt 0:00:00]} 2. d4 {[%emt 0:00:00]} Bb7 {[%emt 0:00:00]} 3. Nc3 {[%emt 0:00:00]} e6 {[%emt 0:00:00]} 4. Nf3 {[%emt 0:00:00]} Bb4 {[%emt 0:00:00]} 5. Bd3 {[%emt 0:00:00]} Nf6 {[%emt 0:00:00]} 6. Qe2 {[%emt 0:00:00]} d5 {[%emt 0:00:00]} 7. e5 {[%emt 0:00:00]} Ne4 {[%emt 0:00:00]} 8. Bd2 {[%emt 0:00:00]} Nxd2 {[%emt 0:00:00]} 9. Qxd2 {[%emt 0:00:00]} O-O {[%emt 0:00:00]} 10. a3 {[%emt 0:00:00]} Be7 {[%emt 0:00:00]} 11. Ne2 {[%emt 0:00:00]} Ba6 {[%emt 0:00:00]} 12. Bxa6 {[%emt 0:00:00]} Nxa6 {[%emt 0:00:00]} 13. Qd3 {[%emt 0:00:00]} Nb8 {[%emt 0:00:00]} 14. b4 {[%emt 0:00:00]} c5 {[%emt 0:00:00]} 15. c3 {[%emt 0:00:00]} a5 {[%emt 0:00:00]} 16. b5 {[%emt 0:00:00]} a4 {[%emt 0:00:00]} 17. O-O {[%emt 0:00:00]} c4 {[%emt 0:00:00]} 18. Qc2 {[%emt 0:00:00]} Qe8 {[%emt 0:00:00]} 19. Rfb1 {[%emt 0:00:00]} Ra5 {[%emt 0:00:00]} 20. Qb2 {[%emt 0:00:00]} Nd7 {[%emt 0:00:00]} 21. Re1 {[%emt 0:00:00]} f6 {[%emt 0:00:00]} 22. Nf4 {[%emt 0:00:00]} Nxe5 {[%emt 0:00:00]} 23. dxe5 {[%emt 0:00:00]} fxe5 {[%emt 0:00:00]} 24. Nxe6 {[%emt 0:00:00]} Rxf3 {[%emt 0:00:00]} 25. gxf3 {[%emt 0:00:40]} Qg6+ {[%emt 0:00:00]} 26. Kh1 {[%emt 0:00:07]} Qxe6 {[%emt 0:00:00]} 27. Qe2 {[%emt 0:00:13]} Rxb5 {[%emt 0:00:00]} 28. Qxe5 {[%emt 0:00:13]} Qxe5 {[%emt 0:00:00]} 29. Rxe5 {[%emt 0:00:02]} Bf6 {[%emt 0:00:00]} 30. Re3 {[%emt 0:01:12]} d4 {[%emt 0:00:00]} 31. cxd4 {[%emt 0:00:32]} Bxd4 {[%emt 0:00:00]} 32. Re8+ {[%emt 0:00:02]} Kf7 {[%emt 0:00:00]} 33. Rae1 {[%emt 0:00:05]} Bf6 {[%emt 0:00:00]} 34. R8e4 {[%emt 0:00:20]} Rb3 {[%emt 0:00:00]} 35. Rxc4 {[%emt 0:00:07]} Rxa3 {[%emt 0:00:00]} 36. Rb1 {[%emt 0:00:33]} Rb3 {[%emt 0:00:13]} 37. Rxb3 {[%emt 0:01:04]} axb3 {[%emt 0:00:02]} 38. Rb4 {[%emt 0:00:01]} b2 {[%emt 0:00:04]} 39. Rxb6 {[%emt 0:00:03]} Kg6 {[%emt 0:00:05]} 40. Rb5 {[%emt 0:00:41]} Be5 {[%emt 0:00:34]} 41. f4 {[%emt 0:00:24]} Bf6 {[%emt 0:00:16]} 42. Kg2 {[%emt 0:00:15]} Kh6 {[%emt 0:00:24]} 43. Kf3 {[%emt 0:00:20]} Kg6 {[%emt 0:00:06]} 44. Ke2 {[%emt 0:00:03]} Kh6 {[%emt 0:00:41]} 45. Kd3 {[%emt 0:00:04]} Kg6 {[%emt 0:00:05]} 46. Kc2 {[%emt 0:00:16]} Kh6 {[%emt 0:00:09]} 47. f3 {[%emt 0:00:11]} Kg6 {[%emt 0:00:03]} 48. h4 {[%emt 0:00:34]} Kf7 {[%emt 0:00:46]} 49. Re5 {[%emt 0:00:09]} Bxh4 {[%emt 0:01:06]} 50. Rh5 {[%emt 0:00:11]} Bf6 {[%emt 0:00:02]} 51. Rxh7 {[%emt 0:00:04]} Kg6 {[%emt 0:00:03]} 52. Rh8 {[%emt 0:00:15]} Kf5 {[%emt 0:00:02]} 53. Rb8 {[%emt 0:00:06]} Kxf4 {[%emt 0:00:05]} 54. Rb3 {[%emt 0:00:03]} Be5 {[%emt 0:01:54]} 55. Kb1 {[%emt 0:00:11]} g5 {[%emt 0:00:37]} 56. Kc2 {[%emt 0:00:04]} Bd4 {[%emt 0:00:12]} 57. Kb1 {[%emt 0:00:24]} Be3 {[%emt 0:00:06]} 58. Kxb2 {[%emt 0:00:14]} Kxf3 {[%emt 0:00:04]} 59. Rb8 {[%emt 0:00:10]} g4 {[%emt 0:00:58]} 60. Rg8 {[%emt 0:00:02]} g3 {[%emt 0:00:06]} 61. Rxg3+ {[%emt 0:00:05]} Kxg3 {[%emt 0:00:01]} 1/2-1/2

[Event "11th LCC Rapid 2019"]
[Site "London"]
[Date "2019.12.07"]
[Round "1.31"]
[White "Arkell, Keith C"]
[Black "Chakanyuka, Charles"]
[Result "1-0"]
[WhiteElo "2453"]
[BlackElo "1995"]
[PlyCount "99"]
[EventDate "2019.12.08"]
[EventType "swiss"]
[EventCountry "ENG"]
[TimeControl "15+10"]
[WhiteClock "0:05:17"]
[BlackClock "0:18:09"]

1. d4 {[%emt 0:00:00]} Nf6 {[%emt 0:00:00]} 2. Nf3 {[%emt 0:00:00]} g6 {[%emt 0:00:00]} 3. c4 {[%emt 0:00:00]} Bg7 {[%emt 0:00:00]} 4. Nc3 {[%emt 0:00:00]} O-O {[%emt 0:00:00]} 5. g3 {[%emt 0:00:00]} d6 {[%emt 0:00:00]} 6. Bg2 {[%emt 0:00:00]} Nc6 {[%emt 0:00:00]} 7. O-O {[%emt 0:00:00]} e5 {[%emt 0:00:00]} 8. dxe5 {[%emt 0:00:00]} Nxe5 {[%emt 0:00:00]} 9. b3 {[%emt 0:00:00]} Nfg4 {[%emt 0:00:00]} 10. Bb2 {[%emt 0:00:00]} Nxf3+ {[%emt 0:00:00]} 11. Bxf3 {[%emt 0:00:00]} Ne5 {[%emt 0:00:00]} 12. Bg2 {[%emt 0:00:00]} Nc6 {[%emt 0:00:00]} 13. Qd2 {[%emt 0:00:00]} Bf5 {[%emt 0:00:00]} 14. Nd5 {[%emt 0:00:00]} Qd7 {[%emt 0:00:00]} 15. Nf6+ {[%emt 0:00:00]} Bxf6 {[%emt 0:00:00]} 16. Bxf6 {[%emt 0:00:00]} Qe6 {[%emt 0:00:00]} 17. Bb2 {[%emt 0:00:00]} Be4 {[%emt 0:00:00]} 18. f3 {[%emt 0:00:00]} Bf5 {[%emt 0:00:00]} 19. e4 {[%emt 0:00:00]} Bxe4 {[%emt 0:00:00]} 20. fxe4 {[%emt 0:00:00]} Ne5 {[%emt 0:00:00]} 21. Qd5 {[%emt 0:00:00]} c6 {[%emt 0:00:00]} 22. Qxe6 {[%emt 0:00:00]} fxe6 {[%emt 0:00:00]} 23. Rad1 {[%emt 0:00:00]} Nf7 {[%emt 0:00:00]} 24. Rf6 {[%emt 0:00:00]} Rae8 {[%emt 0:00:00]} 25. Rdf1 {[%emt 0:00:00]} Nd8 {[%emt 0:00:00]} 26. e5 {[%emt 0:00:00]} d5 {[%emt 0:00:00]} 27. cxd5 {[%emt 0:00:00]} cxd5 {[%emt 0:00:00]} 28. Ba3 {[%emt 0:00:00]} Rf7 {[%emt 0:00:00]} 29. Bh3 {[%emt 0:00:00]} Kg7 {[%emt 0:00:00]} 30. Bd6 {[%emt 0:00:00]} a6 {[%emt 0:00:00]} 31. Bg4 {[%emt 0:00:00]} h6 {[%emt 0:00:00]} 32. Be2 {[%emt 0:00:00]} Rxf6 {[%emt 0:00:00]} 33. Rxf6 {[%emt 0:00:00]} Nf7 {[%emt 0:00:00]} 34. Bd3 {[%emt 0:00:00]} g5 {[%emt 0:00:00]} 35. Rg6+ {[%emt 0:00:00]} Kh8 {[%emt 0:00:00]} 36. Kf2 {[%emt 0:00:00]} g4 {[%emt 0:00:53]} 37. Rxg4 {[%emt 0:00:00]} Nxd6 {[%emt 0:00:07]} 38. exd6 {[%emt 0:00:00]} Rd8 {[%emt 0:00:01]} 39. Rg6 {[%emt 0:00:00]} Rxd6 {[%emt 0:00:05]} 40. Rxh6+ {[%emt 0:00:00]} Kg7 {[%emt 0:00:11]} 41. Rh7+ {[%emt 0:00:00]} Kf6 {[%emt 0:00:04]} 42. Ke3 {[%emt 0:00:00]} b5 {[%emt 0:00:10]} 43. h4 {[%emt 0:00:00]} Ke5 {[%emt 0:00:23]} 44. Rh5+ {[%emt 0:00:00]} Kf6 {[%emt 0:00:00]} 45. Kd4 {[%emt 0:00:00]} Rd8 {[%emt 0:00:32]} 46. Rh6+ {[%emt 0:00:00]} Kf7 {[%emt 0:00:02]} 47. Ke5 {[%emt 0:00:00]} Rc8 {[%emt 0:00:36]} 48. Rf6+ {[%emt 0:00:00]} Kg7 {[%emt 0:00:02]} 49. Rxe6 {[%emt 0:00:00]} Rc3 {[%emt 0:00:02]} 50. Kd4 {[%emt 0:00:00]} 1-0